Cogmind - Beta 16 @@@ ROGUE MODE // 2025.12.01 @ 18:16:05 Player: GLC Result: Destroyed by as-41083 with Assembled Rifle Performance ------------- Evolutions (0) 0 Regions Visited (2) 400 Robots Destroyed (19) 95 Value Destroyed (222) 222 Prototype IDs (0) 0 Alien Tech Used (0) 0 Bonus (0) 0 TOTAL SCORE: 717 Bonus ------- None Cogmind --------- Core Integrity 0/250 Matter 300/300 Energy 98/100 System Corruption 1% Temperature Cool (0) Movement Rolling (80) Location -10/Mines Parts ------- > --- POWER (1) -------- (None) > --- PROPULSION (2) --- Wheel Wheel > --- UTILITY (2) ------ Medium Storage Unit Signal Interpreter > --- WEAPON (2) ------- (None) > --- INVENTORY (10) --- Ion Engine Ion Engine Signal Interpreter Seismic Detector Targeting Computer Peak State ------------ > --- POWER ------------ Ion Engine > --- PROPULSION ------- Wheel Wheel > --- UTILITY ---------- Medium Storage Unit Transport Network Coupler > --- WEAPON ----------- Medium Laser Datajack > --- INVENTORY -------- Ion Engine Wheel Wheel Wheel Signal Interpreter Signal Interpreter Seismic Detector Targeting Computer Small Laser Small Laser [Rating: 8] Favorites ----------- Power Ion Engine Engine Ion Engine Propulsion Wheel Wheel Wheel Utility Medium Storage Unit Device Seismic Detector Storage Medium Storage Unit Processor Signal Interpreter Weapon Small Laser Energy Gun Small Laser Special Melee Weapon Datajack Build | -11 -10 -10 ------- Run | Yrd Mat Min Slots Evolved . | . . . Power . | . . . Propulsion . | . . . Utility . | . . . Weapon . | . . . Parts Attached 17 | 6 10 1 Power 2 | 1 1 . Engine 2 | 1 1 . Core . | . . . Reactor . | . . . Propulsion 6 | 1 4 1 Treads . | . . . Leg . | . . . Wheel 6 | 1 4 1 Hover . | . . . Flight . | . . . Utility 5 | 2 3 . Device 1 | 1 . . Storage 2 | 1 1 . Processor 2 | . 2 . Hackware . | . . . Protection . | . . . Artifact . | . . . Weapon 4 | 2 2 . Energy Gun 3 | 2 1 . Energy Cannon . | . . . Ballistic Gun . | . . . Ballistic Cannon . | . . . Launcher . | . . . Special Weapon . | . . . Impact Weapon . | . . . Slashing Weapon . | . . . Piercing Weapon . | . . . Special Melee Weapon 1 | . 1 . Unidentified Prototypes . | . . . Parts Lost 7 | . . 7 Power 1 | . . 1 Propulsion 2 | . . 2 Utility . | . . . Weapon 4 | . . 4 Highest Loss Streak 5 | . . 5 To Critical Strikes . | . . . Average Backups 7 | 3 8 7 Power 1 | . . 1 Propulsion 2 | 2 3 1 Utility 2 | . 2 3 Weapon . | . 1 . Tool/Special . | . . . Unused Backups 6 | 2 1 3 Power 2 | . 1 1 Propulsion 1 | 1 . . Utility 2 | . . 2 Weapon 1 | 1 . . Tool/Special . | . . . Average Slot Usage (%) 83 | . 94 73 Engine 10 | . 14 6 Wheel 25 | . 22 28 Storage 14 | . 14 14 Processor 13 | . 12 14 Energy Gun 16 | . 23 9 Special Melee Weapon 2 | . 4 . Peak Build Rating 8 | 6 8 7 Average Rating 5 | 3 6 5 On Entrance 4 | . 6 7 Avg Prop Armor Cover (%) 14 | . . 14 Naked Turns . | . . . Heaviest Build 18 | 13 18 17 Greatest Support 20 | 10 20 20 Greatest Overweight (x) 1 | 1 1 . Average Overweight (x) . | . . . Largest Inventory Capacity 10 | 8 10 10 Average Capacity 9 | 5 9 10 Most Carried 10 | 5 10 10 Average Carried 7 | 3 8 7 Final Capacity 10 | 8 10 10 Final Carried 9 | 5 9 5 Class Distribution -------------------- 100% | Mutant Dominant Class ---------------- Mutant | -10/Materials Mutant | -10/Mines Resources | -11 -10 -10 ----------- Run | Yrd Mat Min Matter Collected 459 | 235 140 84 Remotely . | . . . Salvage Created 527 | 147 223 157 Parts 36 | 10 18 8 Haulers Intercepted 2 | . 2 . Recyclers Shooed 1 | . 1 . Parts Field Recycled . | . . . Retrieved Matter . | . . . Parts Self-Destructed . | . . . Prevented . | . . . Parts Restored . | . . . Kills | -11 -10 -10 ------- Run | Yrd Mat Min Combat Hostiles Destroyed 11 | . 6 5 Melee 1 | . . 1 Guns 10 | . 6 4 Classes Destroyed 7 | 2 3 2 Tunneler 5 | 4 . 1 Hauler 2 | . 2 . Recycler 1 | 1 . . Watcher 1 | . 1 . Swarmer 8 | . 6 2 Grunt 2 | . . 2 Assembled 1 | . . 1 Best Kill Streak 4 | 2 4 3 Combat Bots Only 3 | . 3 3 Max Kills in Single Turn 1 | 1 1 1 Gunslinging . | . . . Exploded . | . . . Melee 1 | . . 1 Uniques/NPCs Destroyed . | . . . Combat | -11 -10 -10 -------- Run | Yrd Mat Min Hostile Shots Fired 110 | . 48 62 Missed 38 | . 15 23 Hits 72 | . 33 39 Melee 4 | . . 4 Projectile 68 | . 33 35 AOE 1 | . . 1 Critical Strikes 5 | . 1 4 Damage Taken 766 | . 267 499 Core 257 | . 79 178 Absorbed by Shields . | . . . Core Remaining (%) 100 | 100 . . Volleys Fired 79 | 12 25 42 Largest 2 | 2 2 2 Hottest 90 | 80 90 90 Shots Fired 116 | 24 43 49 Gun 116 | 24 43 49 Cannon . | . . . Launcher . | . . . Special . | . . . Kinetic . | . . . Thermal 116 | 24 43 49 Explosive . | . . . Electromagnetic . | . . . Robot Hit Streak 11 | 9 11 6 Robot Miss Streak 5 | 2 5 3 Penetration Max . | . . . Secondary Targets . | . . . Shots Hit Robots 76 | 17 29 30 Core Hits 30 | 6 12 12 Critical Kills . | . . . Critical Parts Destroyed . | . . . Critical Strikes 3 | . 3 . Burn 3 | . 3 . Melee Attacks 10 | . 8 2 Impact . | . . . Slashing . | . . . Piercing . | . . . Sneak Attacks 8 | . 8 . Combat Hostiles . | . . . Follow-up Attacks . | . . . Damage Inflicted 810 | 187 281 342 Guns 795 | 187 281 327 Cannons . | . . . Explosions . | . . . Melee . | . . . Ramming 15 | . . 15 Kinetic . | . . . Thermal 795 | 187 281 327 Explosive . | . . . Electromagnetic . | . . . Impact . | . . . Slashing . | . . . Piercing . | . . . Highest Corruption 1 | . . 1 Average Corruption 1 | . . 1 Corruption Purged . | . . . Corruption Blocked . | . . . Effects 2 | . . 2 Message Errors 1 | . . 1 Matter Fused 1 | . . 1 Overload Shots . | . . . Overflow Damage . | . . . Projectiles . | . . . Explosions . | . . . Melee . | . . . Knockbacks . | . . . Impact . | . . . Kinetic . | . . . Secondary . | . . . Self-Inflicted Damage 6 | . . 6 Shots . | . . . Rammed 4 | . . 4 Targets Rammed 4 | . . 4 Kicked . | . . . Crushed . | . . . Highest Temperature 243 | 72 240 243 Average Temperature 81 | 32 75 141 Received Heat Transfer 93 | . . 93 Effects 2 | . . 2 Energy Bleed 1 | . . 1 Interference 1 | . . 1 Siege Activations . | . . . Martial Activations . | . . . Shielding Activations . | . . . Robots Disrupted . | . . . Combat Hostiles . | . . . Robots Corrupted . | . . . Combat Hostiles . | . . . Parts Fried . | . . . Impact Corruptions . | . . . Robots Melted . | . . . Combat Hostiles . | . . . Parts Melted 5 | 2 2 1 Heat Transferred 2176 | 425 978 773 Parts Sabotaged . | . . . Parts Stolen . | . . . Parts Stripped . | . . . Power Chain Reactions . | . . . Alert | -11 -10 -10 ------- Run | Yrd Mat Min Maximum Alert Level . | . . . Low Security (%) 100 | 100 100 100 Level 1 . | . . . Level 2 . | . . . Level 3 . | . . . Level 4 . | . . . Level 5 . | . . . High Security . | . . . Max Security . | . . . Peak Influence 67 | 10 67 60 Initial . | . . . Average 12 | 1 22 6 Influence Increases 321 | 25 161 135 Destroy 0b10 Robot/C 200 | . 120 80 Destroy 0b10 Robot/NC 45 | 25 15 5 Destroy Leader 46 | . 26 20 Lose Combat Pursuer 30 | . . 30 Influence Decreases 321 | 25 161 135 Time Decay 261 | 25 161 75 Lost Part 60 | . . 60 Squads Dispatched . | . . . Investigation . | . . . Extermination . | . . . Reinforcement . | . . . Assault . | . . . Garrison . | . . . Intercept . | . . . Searches Triggered . | . . . Construction Impeded . | . . . Haulers Reinforced . | . . . Active Scanning Responses . | . . . Cargo Convoy Interrupts . | . . . Stealth | -11 -10 -10 --------- Run | Yrd Mat Min Distress Signals . | . . . Communications Jammed . | . . . Distress Signals . | . . . Times Spotted 29 | . 11 18 Peak Tracking Total 5 | . 4 5 Tactical Retreats 2 | . . 2 Traps | -11 -10 -10 ------- Run | Yrd Mat Min Traps Triggered 1 | . 1 . Indirectly . | . . . Trap Hack Attempts . | . . . Triggered . | . . . Disarmed . | . . . Reprogrammed . | . . . Reused . | . . . Traps Extracted . | . . . Installed . | . . . Triggered . | . . . Machines | -11 -10 -10 ---------- Run | Yrd Mat Min Machines Disabled . | . . . Max in Single Turn . | . . . Machines Repaired . | . . . Machines Dismantled . | . . . Machines Sabotaged . | . . . Overloaded Fab Kills . | . . . Hacking | -11 -10 -10 --------- Run | Yrd Mat Min Machines Accessed 1 | . 1 . Terminals 1 | . 1 . Fabricators . | . . . Repair Stations . | . . . Recycling Units . | . . . Scanalyzers . | . . . Garrison Access . | . . . Total Hacks 3 | . 3 . Successful 2 | . 2 . Failed 1 | . 1 . Catastrophic . | . . . Database Lockouts . | . . . Manual . | . . . Terminals 3 | . 3 . Fabricators . | . . . Repair Stations . | . . . Recycling Units . | . . . Scanalyzers . | . . . Garrison Access . | . . . Terminal Hacks 2 | . 2 . Record 1 | . 1 . Emergency Access Points 1 | . 1 . Fabricator Hacks . | . . . Repair Station Hacks . | . . . Recycling Unit Hacks . | . . . Scanalyzer . | . . . Garrison Access Hacks . | . . . Unauthorized Hacks . | . . . Terminals . | . . . Fabricators . | . . . Repair Stations . | . . . Recycling Units . | . . . Scanalyzers . | . . . Garrison Access . | . . . Data Cores Recovered . | . . . Used . | . . . Hacking Detections 1 | . 1 . Full Trace Events 1 | . 1 . Feedback Events . | . . . Feedback Blocked . | . . . Robot Schematics Acquired . | . . . Robots Built . | . . . Authchips . | . . . Time . | . . . Total Robot Build Rating . | . . . Part Schematics Acquired . | . . . Parts Built . | . . . Authchips . | . . . Time . | . . . Total Part Build Rating . | . . . Part Studies Acquired . | . . . Parts Repaired . | . . . Time . | . . . Parts Recycled . | . . . Recycled Matter . | . . . Retrieved Matter . | . . . Retrieved Components . | . . . Parts Scanalyzed . | . . . Part Schematics Acquired . | . . . Parts Damaged . | . . . Bothacking | -11 -10 -10 ------------ Run | Yrd Mat Min Used RIF Installer . | . . . Robots Hacked 4 | . 3 1 Non-combat 3 | . 3 . Combat 1 | . . 1 Robot Hacks Applied 5 | . 4 1 parse_system 3 | . 2 1 no_distress 2 | . 2 . Relay Couplers Released . | . . . Fabnet Peak Effective % . | . . . Robots Rewired . | . . . Allies Hacked . | . . . Hacks Repelled . | . . . Allies | -11 -10 -10 -------- Run | Yrd Mat Min Total Allies . | . . . Largest Group . | . . . Highest-Rated Group . | . . . Highest-Rated Ally . | . . . Total Orders . | . . . Ally Attacks . | . . . Total Damage . | . . . Kills . | . . . Allies Corrupted . | . . . Allies Melted . | . . . Intel | -11 -10 -10 ------- Run | Yrd Mat Min Active Infowar (turns) 427 | 44 383 . Seismic 86 | 44 42 . T.N.C. 341 | . 341 . Robot Analysis Total . | . . . Derelict Logs Recovered 1 | . . 1 Drone Launches . | . . . Drone Recoveries . | . . . Exploration | -11 -10 -10 ------------- Run | Yrd Mat Min Turns Passed 1019 | 149 445 425 Spaces Moved 667 | 113 389 165 Core 9 | 9 . . Treads . | . . . Legs . | . . . Wheels 658 | 104 389 165 Hover . | . . . Flight . | . . . Fastest Speed 50 | 50 80 80 Average Speed 83 | 80 85 80 Slowest Speed 95 | 95 95 80 Overloaded Moves . | . . . Propulsion Burnouts . | . . . Robots Hopped . | . . . Potential Cave-ins . | . . . Cave-ins Triggered . | . . . Exploration Rate (%) 26 | 4 43 33 Regions Visited 2 Branch Regions 1 Pre-discovered Areas 1 | . . 1 Known Exits Taken 1 | . 1 . Unknown Exits Taken 1 | 1 . . Scrap Searched . | . . . Spaces Dug . | . . . Terrain Destroyed . | . . . Melee . | . . . Projectile . | . . . AOE . | . . . Terrain Rammed . | . . . Walls Destroyed . | . . . Machines Disabled . | . . . Actions | -11 -10 -10 --------- Run | Yrd Mat Min Total 1007 | 149 450 408 Wait 185 | . . 185 Move 665 | 112 388 165 Hop . | . . . Pick Up 28 | 15 11 2 Fast Attach . | . . . Attach 14 | 6 4 4 Detach . | . . . Swap 14 | . 12 2 Drop 8 | 4 2 2 Fire 79 | 12 25 42 Melee 10 | . 8 2 Ram 4 | . . 4 Kick . | . . . Crush . | . . . Escape Stasis . | . . . Rewire . | . . . Trap . | . . . Miscellaneous . | . . . Route ------- -11/Scrapyard -10/Materials (discovered 2 exits: *Mat / *Min) -10/Mines (discovered 2 exits: *Mat / *Sub) History --------- Turn | Location | Event 6 | -11/Scrapyard | Discovered new exit (range 16) 150 | -11/Scrapyard | Entered Materials 301 | -10/Materials | Build established: Mutant 405 | -10/Materials | Discovered new exit (range 13) 512 | -10/Materials | Discovered new exit (range 13) 534 | -10/Materials | Identified exit to Materials 594 | -10/Materials | Identified exit to Mines 595 | -10/Materials | Entered Mines 734 | -10/Mines | Discovered new exit (range 4) 737 | -10/Mines | Identified exit to Subcaves 753 | -10/Mines | Assembled infested the area 759 | -10/Mines | Discovered exit to Materials (range 12) 778 | -10/Mines | Core integrity fell below 50% 812 | -10/Mines | Core integrity fell below 20% 842 | -10/Mines | Lost 5 parts (1p2n2w) 1020 | -10/Mines | Destroyed by as-41083 with Assembled Rifle Last Messages --------------- >>parse_system Reading system data... Datajack destroyed. Slammed into as-60908. Wheel broken. Destabilizing: Short circuit. Slammed into as-60908. Acquired 17 matter. as-83354 destroyed. as-27418 destroyed. Slammed into as-60908. as-60908 destroyed. Destabilizing: System corrupted (+1). as-75564 destroyed. as-90001 destroyed. Dropped Broken Wheel. />9&|ILFZY,TVGHO MR B59Z3PATKVHZWG|N 7 System corrupted: Matter fused (-5). Acquired 15 matter. as-94226 destroyed. Map ----- +----------------------------------------------------+ | ??????????????????????????????????????????? | | ??????????????????????????????????????????? | | ??????????????????????????????????????????? | | ??????????????????????????????????????????? | | ??????????????????????????????????????????? | | ??????????????????????????????????????????? | | ??????????????????????????????????????????? | | ??????????????????????????????????????????? | | ??????????????????????????????????????????? | | ??????????????????????????????????????????? | | ??????????????????????????????????????????? | | ????????????????? ?#???????????????????? | | ?????????????????# =!??????????????????? | | ?????????????????? =%=??????????????????? | | ?????????????????# !# ??????????????????? | | ??????????????##?### # ??????????????????? | | ??????????????# # # %# ??????????????????? | | ?????????????## # #??####???????????? | | ??????????#### ### ##??????????? | | ??????????? # ###????????? | | ???????????# # a ##???????? | | ???????????# #??# % a ##??????? | | ?????????### ##?# % % % #??????? | | ????????## #### ] =%* ##?????? | | ???????## ## %= ##% #?????? | | #??????# ! @ #### #?????? | | #####?## ##??# ##?????? | | ### = ##???##= ##??????? | | !!! ###?????####???????? | | ## !=*%r##??????????????????? | | #### =%!!=!#???????????????????? | | ???## ## ###% #???????????????????? | | ????###### ##?# #???????????????????? | | #????????## ##??# ######??????????????? | | ##????????# #???# # #??????????????? | | #???####?## #???# ### #?????? | | #??## ##?# #???# % #?????? | | ##?## #?##//##??### ### < #?????? | | #??# #?# #????### ##??????????????? | | ???# #?# #???????###???????????????? | | #??? #?### #?????????????????????????? | | #???# #?#> ####?????????????????????????? | | #??## = #?####????????????????????????????? | | ####%=% #?????????????????????????????????? | | = #?????????????????????????????????? | | ##?????????????????????????????????? | | ##??????????????????????????????????? | | ######???????????????????????????????????? | | ##????????????????????????????????????????? | | ??????????????????????????????????????????? | +----------------------------------------------------+ Best States ------------- Heat Dissipation 25 Energy Generation 10 Energy Capacity 250 Matter Stores 300 Matter Capacity 300 Sight Range 16 Terrain Scan Density 10 Evasion (%) 44 Item Schematics ----------------- None Robot Schematics ------------------ None Fabricated ------------ Nothing Repaired ---------- Nothing Studied --------- None Alien Tech Used ----------------- None Achievements -------------- None Challenges ------------ None Game ------ Seed WeightCatalystFacilitator Manual? 0 Play Time 00:14:34 Cumulative 8.7 hours Start 2025.12.01 @ 18:02:27 End 2025.12.01 @ 18:16:05 Sessions 1 Manual Loads 0 Difficulty Rogue Special Mode None Game No. 18 Rogue 18 Adventurer 0 Explorer 0 Win Type - Total 0 Types 0/0/0/0/0/0/0/0/0/0 Lore% 6 Gallery% 11 Achievement% 12 Wizard Run 0 Options --------- Layout 1 ASCII 0 Keyboard 0 Movement Mouse Keybinds 0 Fullscreen 1 Font 24/Smallcaps Map View 50x35 Zoom Use 0% Tactical HUD 0 Map Filters NONE Filters NONE Steam 1 RUN: 869ed6f0-2792-4b7a-ba52-70e7c81f63e6